bitfinex/quotes_SOLUSD_20230111
["timestamp","ask_amount","ask_price","bid_price","bid_amount"]
[1673467170894,46.89,15.997,15.983,16.92232088]
[1673467171308,20.0,15.996,15.983,16.92232088]
[1673467172694,46.89,15.997,15.983,16.92232088]
[1673467172902,66.89,15.998,15.984,66.93]
[1673467173308,46.89,15.998,15.985,34.88232088]
[1673467173640,46.89,15.999,15.986,37.88232088]
[1673467173953,66.89,15.999,15.987,17.96]
[1673467174165,66.89,15.999,15.988,20.96]
[1673467174378,20.0,15.998,15.989,17.96]
[1673467174895,20.0,15.998,15.99,0.96]
[1673467175106,20.0,15.998,15.991,0.96]
[1673467176906,20.0,15.998,15.992,0.96]
[1673467177407,20.0,15.998,15.993,0.96]
[1673467179323,153.41,16.01,15.994,0.96]
[1673467179324,46.87,16.005,15.994,0.96]
[1673467179515,46.87,16.005,15.995,0.96]
[1673467179852,46.87,16.006,15.996,0.96]
[1673467180259,20.0,16.005,15.997,0.96]
[1673467180472,1363.9725,16.008,15.997,17.88232088]
[1673467180790,1363.9725,16.008,15.998,101.77232088]
[1673467181004,1363.9725,16.008,15.999,0.96]
[1673467181215,20.0,16.007,16.0,47.84]
[1673467181526,20.0,16.007,16.001,17.96]
[1673467181739,20.0,16.007,16.002,0.96]
[1673467181943,20.0,16.007,16.003,0.96]
[1673467182789,20.0,16.007,16.002,0.96]
[1673467183317,20.0,16.007,15.996,46.9]
[1673467183527,20.0,16.007,15.997,20.96]
[1673467183742,20.0,16.007,15.998,47.85]
[1673467183936,20.0,16.007,15.999,0.96]
[1673467184477,20.0,16.007,15.999,17.96]
[1673467189504,20.0,16.007,15.999,17.0]
[1673467189718,20.0,16.007,15.997,20.0]
[1673467190033,20.0,16.007,15.995,20.0]
[1673467190886,22.10837089,16.004,15.98,26.46]
[1673467191077,22.10837089,16.004,15.981,20.0]
[1673467191292,2.10837089,16.002,15.981,20.0]
[1673467191516,22.10837089,16.002,15.983,20.0]
[1673467191711,22.10837089,16.002,15.984,46.93]
[1673467192129,22.10837089,16.002,15.985,20.0]
[1673467192340,22.10837089,16.002,15.986,64.89]
[1673467192672,20.0,16.002,15.987,20.96]
[1673467192885,20.0,16.002,15.988,64.88]
[1673467193073,20.0,16.002,15.989,20.96]
[1673467193284,20.0,16.002,15.99,64.87]
[1673467193711,20.0,16.004,15.991,20.96]
[1673467193934,20.0,16.004,15.992,64.87]
[1673467194145,20.0,16.004,15.993,20.96]
[1673467194352,20.0,16.004,15.994,64.86]
[1673467194784,20.0,16.004,15.995,20.0]
[1673467195090,20.0,16.004,15.996,17.0]
[1673467195297,20.0,16.004,15.997,20.0]
[1673467195724,1363.9725,16.008,15.997,20.0]
[1673467195915,1363.9725,16.008,15.998,18.92]
[1673467196122,20.0,16.007,15.998,18.92]
[1673467196980,1363.9725,16.008,15.998,18.92]
[1673467197590,20.0,16.007,15.998,18.92]
[1673467198341,1363.9725,16.008,15.998,18.92]
[1673467198782,1363.9725,16.008,15.998,65.81]
[1673467198783,20.0,16.007,15.998,65.81]
[1673467199274,20.0,16.007,15.998,18.92]
[1673467200449,46.83,16.018,16.0,26.66]
[1673467200648,118.7633,16.017,16.001,38.92]
[1673467200858,46.84,16.016,16.002,46.88]
[1673467201063,20.0,16.015,16.003,18.92]
[1673467201282,20.0,16.015,16.003,38.92]
[1673467202424,66.84,16.016,16.003,38.92]
[1673467202637,46.84,16.016,16.003,38.92]
[1673467202855,118.7633,16.017,16.003,38.92]
[1673467203062,20.0,16.016,16.003,38.92]
[1673467203904,66.84,16.016,16.003,38.92]
[1673467204953,20.0,16.015,16.003,38.92]
[1673467207788,20.0,16.015,16.003,17.0]
[1673467208010,20.0,16.013,16.003,17.0]
[1673467208206,46.85,16.012,15.993,46.9]
[1673467208853,20.0,16.011,15.993,46.9]
[1673467209050,46.85,16.01,15.993,46.9]
[1673467209260,20.0,16.009,15.993,46.9]
[1673467210630,20.0,16.009,15.994,20.0]
[1673467211168,46.86,16.008,15.994,20.0]
[1673467211356,20.0,16.007,15.994,20.0]
[1673467211793,1.92,16.006,15.994,20.0]
[1673467211997,1.92,16.006,15.992,20.0]
[1673467212296,20.0,16.007,15.993,46.9]
[1673467212534,20.0,16.007,15.994,20.0]
[1673467212932,20.0,16.007,15.995,65.82]
[1673467213151,20.0,16.007,15.996,20.0]
[1673467213457,20.0,16.008,15.997,18.92]
[1673467213687,20.0,16.008,15.998,20.0]
[1673467214000,20.0,16.008,15.999,18.92]
[1673467214400,20.0,16.009,15.999,18.92]
[1673467214611,137.1499,16.01,15.999,18.92]
[1673467214825,46.85,16.012,15.999,18.92]
[1673467215040,46.84,16.014,16.0,93.48]
[1673467215247,20.0,16.015,16.001,17.96]
[1673467215459,20.0,16.015,16.002,0.96]
[1673467215664,20.0,16.015,16.003,0.96]
[1673467215886,20.0,16.015,16.004,0.96]
[1673467216085,20.0,16.015,16.005,0.96]
[1673467216295,20.0,16.015,16.006,0.96]
[1673467216504,20.0,16.015,16.006,20.96]
[1673467216733,20.0,16.013,16.007,17.0]
[1673467217246,20.0,16.013,16.008,20.0]
[1673467218091,46.84,16.014,16.008,20.0]
[1673467219240,46.84,16.014,16.002,20.0]
[1673467220205,46.84,16.014,16.003,18.92]
[1673467220412,46.84,16.014,16.004,37.0]
[1673467220632,46.84,16.014,16.005,1.92]
[1673467220815,46.84,16.014,16.005,18.92]
[1673467221149,46.84,16.014,16.006,20.0]
[1673467221358,46.84,16.014,16.007,17.0]
[1673467221757,46.84,16.014,16.008,20.0]
[1673467221992,46.84,16.014,16.009,17.0]
[1673467222184,21.92,16.013,15.99,20.0]
[1673467222397,46.85,16.012,15.99,20.0]
[1673467222713,20.0,16.011,15.99,20.0]
[1673467222935,46.85,16.01,15.991,46.91]
[1673467223763,235.35,16.01,15.991,46.91]
[1673467223971,1.92,16.009,15.991,46.91]
[1673467224183,188.5,16.008,15.988,46.92]
[1673467224386,188.5,16.008,15.987,46.92]
[1673467224387,188.5,16.006,15.987,46.92]
[1673467224597,48.78,16.007,15.987,46.92]
[1673467224598,46.86,16.007,15.987,46.92]
[1673467224808,21.92,16.006,15.986,20.0]
[1673467225018,21.92,16.006,15.987,46.92]
[1673467225771,20.96,16.006,15.987,46.92]
[1673467225965,0.96,16.005,15.988,20.0]
[1673467226176,0.96,16.005,15.989,65.84]
[1673467226387,20.0,16.006,15.99,20.0]
[1673467226605,20.0,16.006,15.991,65.83]
[1673467226820,0.96,16.005,15.991,46.91]
[1673467227138,0.96,16.005,15.992,20.0]
[1673467227458,20.0,16.004,15.993,46.9]
[1673467227673,20.0,16.004,15.994,20.0]
[1673467227981,20.0,16.004,15.995,46.9]
[1673467228196,20.0,16.004,15.996,20.0]
[1673467228380,20.0,16.004,15.996,37.0]
[1673467228701,20.0,16.004,15.996,20.0]
[1673467228914,20.0,16.004,15.991,66.91]
[1673467229126,20.0,16.004,15.992,18.92]
[1673467229450,114.3675,16.005,15.993,46.9]
[1673467229643,114.3675,16.005,15.994,37.96]
[1673467230706,20.0,16.004,15.995,46.9]
[1673467230917,20.0,16.004,15.996,20.0]
[1673467231235,114.3675,16.005,15.995,46.9]
[1673467231431,114.3675,16.005,15.996,20.0]
[1673467232163,114.3675,16.005,15.993,20.0]
[1673467232379,114.3675,16.005,15.994,85.82]
[1673467232606,114.3675,16.005,15.995,20.0]
[1673467232822,114.3675,16.005,15.996,65.82]
[1673467233235,46.84,16.014,15.996,65.82]
[1673467233444,46.83,16.019,15.997,20.0]
[1673467233655,7.20991,16.018,16.001,20.0]
[1673467233987,7.20991,16.018,16.002,65.8]
[1673467234203,109.8575,16.019,16.003,20.0]
[1673467234409,109.8575,16.019,16.004,48.79]
[1673467234601,20.0,16.018,16.005,37.0]
[1673467234811,109.8575,16.019,16.006,48.79]
[1673467235022,109.8575,16.019,16.007,17.0]
[1673467235461,109.8575,16.019,16.008,1.92]
[1673467235673,20.0,16.018,16.008,1.92]
[1673467237651,109.8575,16.019,16.008,1.92]
[1673467238509,20.0,16.018,16.008,1.92]
[1673467239233,20.0,16.018,16.008,21.92]
[1673467239445,20.0,16.018,16.009,17.0]
[1673467240501,109.8575,16.019,16.009,17.0]
[1673467240707,109.8575,16.019,16.01,1.92]
[1673467242496,110.2218,16.02,16.01,1.92]
[1673467243114,20.0,16.019,16.01,1.92]
[1673467243320,66.82,16.023,16.01,1.92]
[1673467243540,20.0,16.025,16.011,20.0]
[1673467243756,46.81,16.024,16.012,38.92]
[1673467244302,46.8,16.028,16.013,99.13491083]
[1673467244489,118.9721,16.029,16.015,20.0]
[1673467244704,162.9759,16.031,16.016,20.0]
[1673467244912,116.1859,16.031,16.017,18.92]
[1673467245125,20.0,16.03,16.018,20.0]
[1673467245328,66.8,16.03,16.019,18.92]
[1673467245559,20.0,16.03,16.019,18.92]
[1673467247235,20.0,16.03,16.02,26.6]
[1673467247565,162.9759,16.031,16.021,18.92]
[1673467247766,162.9759,16.031,16.021,17.0]
[1673467247969,162.9759,16.031,16.022,1.92]
[1673467248477,20.0,16.03,16.022,1.92]
[1673467248691,116.1859,16.031,16.022,1.92]
[1673467249427,46.79,16.033,16.022,1.92]
[1673467249644,65.92496728,16.035,16.02,52.28491083]
[1673467249850,20.0,16.03,16.02,52.28491083]
[1673467250065,46.8,16.029,16.02,52.28491083]
[1673467250281,261.65487728,16.029,15.998,20.0]
[1673467250498,20.0,16.027,16.01,26.54]
[1673467250703,67.77,16.026,16.01,26.54]
[1673467250921,68.73,16.026,16.01,26.54]
[1673467251125,68.73,16.026,16.004,46.87]
[1673467251551,20.0,16.025,16.004,46.87]
[1673467251873,237.23,16.024,16.004,46.87]
[1673467252062,24.20991,16.023,16.003,46.88]
[1673467252391,48.74,16.022,16.002,162.704]
[1673467252603,20.0,16.021,16.003,20.0]
[1673467252811,48.75,16.02,16.004,46.87]
[1673467253014,48.75,16.02,16.0,26.39]
[1673467253228,115.8215,16.019,16.001,20.0]
[1673467253426,20.0,16.017,16.001,20.0]
[1673467253636,46.84,16.016,16.001,20.0]
[1673467254058,20.0,16.015,16.001,20.0]
[1673467254285,46.84,16.014,16.001,20.0]
[1673467254896,46.84,16.014,16.002,18.92]
[1673467255143,20.0,16.015,16.003,20.0]
[1673467255471,32.10816711,16.044,16.01,26.39]
[1673467255663,1848.2,16.054,16.004,9.11166]
[1673467255664,20.0,16.043,16.03,26.39]
[1673467255874,20.0,16.043,16.011,95.95852]
[1673467255875,115.8215,16.059,16.031,65.71]
[1673467256201,53.92991,16.055,16.032,20.0]
[1673467256412,20.0,16.054,16.033,65.71]
[1673467256732,20.0,16.054,16.034,20.0]
[1673467256733,46.73,16.053,16.034,20.0]
[1673467256930,46.73,16.053,16.035,65.7]
[1673467257139,20.0,16.052,16.036,20.0]
[1673467257347,20.0,16.052,16.037,65.7]
[1673467257559,46.74,16.051,16.038,20.0]
[1673467257787,46.74,16.051,16.039,18.92]
[1673467258179,20.0,16.054,16.039,18.92]
[1673467258180,46.73,16.053,16.039,18.92]
[1673467258396,20.0,16.055,16.039,18.92]
[1673467258397,490.21304835,16.056,16.04,42.32733288]
[1673467258607,490.21304835,16.056,16.041,38.92]
[1673467258947,7.20991,16.056,16.009,108.33926939]
[1673467259153,46.72,16.055,16.028,21.92]
[1673467259342,96.06725911,16.061,16.028,29.1009]
[1673467259669,46.08003883,16.059,16.029,89.91778288]
[1673467259988,46.71,16.058,16.03,45.03733288]
[1673467260198,20.0,16.06,16.031,53.96955]
[1673467260512,20.0,16.06,16.033,20.0]
[1673467260827,46.71,16.061,16.05,26.54]
[1673467261040,46.67,16.072,16.051,20.0]
[1673467261239,46.67,16.072,16.052,18.92]
[1673467261452,20.0,16.071,16.06,26.37]
[1673467261764,159.3615,16.082,16.061,37.96]
[1673467261974,159.3615,16.082,16.061,101.56733288]
[1673467262633,159.3615,16.082,16.061,15.93733288]
[1673467262634,26.54,16.08,16.061,15.93733288]
[1673467262933,72.09694459,16.06,16.05,26.54]
[1673467263142,72.09694459,16.06,16.051,20.0]
[1673467263547,72.09694459,16.06,16.05,26.54]
[1673467263762,46.71,16.059,16.05,26.54]
[1673467264509,20.0,16.058,16.05,26.54]
[1673467265539,72.09694459,16.06,16.051,62.67733288]
[1673467265868,61.09694459,16.06,16.052,17.85733288]
[1673467266080,61.09694459,16.06,16.053,66.73]
[1673467266294,61.09694459,16.06,16.054,9.08927]
[1673467266478,61.09694459,16.06,16.055,73.88882]
[1673467266693,46.65,16.08,16.057,20.0]
[1673467266903,20.0,16.081,16.06,26.54]
[1673467267124,46.63,16.086,16.07,26.39]
[1673467267319,46.63,16.086,16.071,68.6]
[1673467267751,46.63,16.086,16.071,21.92]
[1673467268179,46.63,16.086,16.072,17.0]
[1673467268477,20.0,16.085,16.073,21.92]
[1673467268703,20.0,16.085,16.074,17.0]
[1673467269006,46.63,16.086,16.08,26.22]
[1673467269209,46.63,16.086,16.081,17.96]
[1673467269424,46.63,16.086,16.082,0.96]
[1673467269841,46.62,16.09,16.083,0.96]
[1673467270077,20.0,16.089,16.082,0.01173045]
[1673467270282,20.0,16.089,16.081,17.0]
[1673467270610,46.63,16.088,16.08,26.48]
[1673467271001,20.0,16.089,16.08,26.48]
[1673467271645,46.63,16.088,16.08,26.48]
[1673467271856,46.63,16.088,16.081,17.0]
[1673467272179,46.63,16.088,16.08,26.48]
[1673467272370,20.0,16.087,16.08,26.48]
[1673467272699,20.0,16.087,16.073,20.0]
[1673467272891,20.0,16.087,16.08,26.22]
[1673467273312,20.0,16.087,16.081,16.48350398]
[1673467273542,46.63,16.086,16.072,20.0]
[1673467273760,46.63,16.086,16.076,16.48350398]
[1673467273964,46.63,16.086,16.077,20.0]
[1673467274161,20.0,16.085,16.077,20.0]
[1673467274376,46.64,16.084,16.077,36.48350398]
[1673467274908,20.0,16.085,16.078,16.48350398]
[1673467275230,20.0,16.085,16.08,26.12]
[1673467275416,46.62,16.09,16.08,26.12]
[1673467275744,298.74692188,16.119,16.081,36.48350398]
[1673467275745,46.6,16.097,16.081,36.48350398]
[1673467275972,66.6,16.098,16.09,26.12]
[1673467276165,108.3522,16.119,16.09,26.12]
[1673467276166,137.415649,16.128,16.1,68.65605185]
[1673467276360,111.8514,16.123,16.1,68.65605185]
[1673467276573,131.69,16.12,16.091,18.92]
[1673467276903,26.29,16.11,16.091,17.0]
[1673467277107,53.77991,16.109,16.091,17.0]
[1673467277324,27.20991,16.108,16.081,46.65]
[1673467277639,26.29,16.1,16.08,26.44]
[1673467277851,46.6,16.099,16.074,73.90008655]
[1673467278037,7.20991,16.098,16.075,57.41658257]
[1673467278254,20.0,16.096,16.08,26.1]
[1673467278588,46.61,16.095,16.08,26.1]
[1673467278986,46.61,16.095,16.08,147.64350398]
[1673467279202,20.0,16.104,16.081,46.65]
[1673467279412,20.0,16.102,16.081,104.06658257]
[1673467279623,46.59,16.101,16.082,73.90008655]
[1673467279939,26.35,16.1,16.08,26.1]
[1673467280162,20.0,16.098,16.082,16.48350398]
[1673467280371,46.6,16.097,16.082,16.48350398]
[1673467280579,46.6,16.097,16.08,26.1]
[1673467280773,20.0,16.096,16.08,42.58350398]
[1673467281110,20.0,16.094,16.08,42.58350398]
[1673467281320,46.61,16.093,16.081,17.0]
[1673467281939,46.61,16.093,16.08,188.91658257]
[1673467282152,46.61,16.093,16.081,16.48350398]
[1673467282365,46.61,16.093,16.082,0.96]
[1673467282702,46.61,16.093,16.083,17.44350398]
[1673467282882,46.61,16.095,16.084,0.96]
[1673467283091,20.0,16.096,16.084,37.44350398]
[1673467283319,46.61,16.095,16.085,34.44350398]
[1673467283637,46.61,16.095,16.086,20.0]
[1673467284061,20.0,16.094,16.086,20.0]
[1673467284261,46.61,16.093,16.084,20.0]
[1673467284577,46.61,16.093,16.083,16.48350398]
[1673467284785,20.0,16.092,16.075,46.67]
[1673467285003,46.62,16.091,16.077,16.48350398]
[1673467285319,20.0,16.09,16.078,17.0]
[1673467285528,46.62,16.089,16.077,16.48350398]
[1673467285742,46.62,16.089,16.078,16.48350398]
[1673467285953,20.0,16.088,16.078,16.48350398]
[1673467286872,20.0,16.088,16.074,57.41658257]
[1673467287095,20.0,16.088,16.075,36.48350398]
[1673467287297,20.0,16.088,16.075,83.15350398]
[1673467287517,20.0,16.088,16.076,16.48350398]
[1673467287923,20.0,16.088,16.075,77.41658257]
[1673467288253,20.0,16.086,16.075,19.5]
[1673467288446,20.0,16.086,16.075,16.48350398]
[1673467288665,20.0,16.086,16.075,73.90008655]
[1673467289199,20.0,16.086,16.071,46.68]
[1673467289407,48.56,16.085,16.069,46.68]
[1673467289597,47.6,16.085,16.064,46.7]
[1673467289927,47.6,16.085,16.064,63.18350398]
[1673467290256,20.0,16.084,16.065,20.0]
[1673467290446,46.64,16.083,16.066,46.69]
[1673467290656,46.64,16.083,16.067,20.0]
[1673467290986,20.0,16.084,16.068,46.69]
[1673467291176,20.0,16.082,16.069,20.0]
[1673467291614,20.0,16.086,16.069,20.0]
[1673467291809,20.0,16.086,16.07,68.64]
[1673467292014,20.0,16.086,16.071,20.0]
[1673467292349,46.64,16.085,16.068,16.55721023]
[1673467292545,154.8361,16.085,16.068,16.55721023]
[1673467293094,20.0,16.084,16.062,46.7]
[1673467293280,48.56,16.083,16.063,16.55721023]
[1673467293490,48.56,16.083,16.064,46.7]
[1673467293491,7.20991,16.082,16.064,46.7]
[1673467293703,46.65,16.081,16.064,46.7]
[1673467293905,46.65,16.082,16.065,16.55721023]
[1673467294120,20.0,16.081,16.065,51.99156473]
[1673467294350,20.0,16.079,16.065,51.99156473]
[1673467294662,20.0,16.079,16.061,46.71]
[1673467294856,46.66,16.078,16.061,46.71]
[1673467295076,46.66,16.078,16.061,63.26721023]
[1673467295277,0.96,16.077,16.061,46.71]
[1673467295495,46.66,16.076,16.056,46.72]
[1673467295698,46.66,16.076,16.057,20.0]
[1673467295910,1.92,16.075,16.058,46.71]
[1673467296123,0.96,16.075,16.059,20.0]
[1673467296324,46.66,16.076,16.06,46.71]
[1673467296659,46.66,16.076,16.061,20.0]
[1673467296860,20.0,16.077,16.062,46.7]
[1673467297071,1.92,16.076,16.063,20.0]
[1673467297283,20.0,16.077,16.064,17.96]
[1673467297501,20.0,16.077,16.064,63.7]
[1673467297698,20.0,16.077,16.065,20.0]
[1673467298027,20.0,16.077,16.066,17.0]
[1673467298636,20.0,16.077,16.065,20.0]
[1673467298847,20.0,16.077,16.059,20.0]
[1673467299075,20.0,16.077,16.06,46.71]
[1673467299265,20.0,16.077,16.061,20.0]
[1673467299266,1.92,16.076,16.061,20.0]
[1673467299478,1.92,16.076,16.062,46.7]
[1673467299688,1.92,16.076,16.063,20.0]
[1673467300120,1.92,16.076,16.059,20.0]
[1673467300337,1.92,16.076,16.06,46.71]
[1673467300527,1.92,16.076,16.061,20.0]
[1673467300738,46.66,16.078,16.062,46.7]
[1673467300948,20.0,16.079,16.063,37.96]
[1673467301166,20.0,16.079,16.064,46.7]
[1673467301387,242.36991,16.078,16.065,20.0]
[1673467301597,7.20991,16.077,16.058,46.71]
[1673467301808,7.20991,16.077,16.06,22.01]
[1673467302423,7.20991,16.077,16.061,46.71]
[1673467302634,1250.0,16.077,16.061,46.71]
[1673467303072,1250.0,16.077,16.062,20.0]
[1673467303260,1250.0,16.081,16.063,46.7]
[1673467303466,1250.0,16.081,16.064,20.0]
[1673467303680,1250.0,16.082,16.065,46.69]
[1673467304029,20.0,16.081,16.066,38.92]
[1673467304220,1250.0,16.08,16.067,46.69]
[1673467304431,1250.0,16.082,16.068,18.92]
[1673467304633,20.0,16.081,16.069,46.68]
[1673467304844,1250.0,16.08,16.07,18.92]
[1673467305063,46.62,16.091,16.071,46.68]
[1673467305378,155.5027,16.091,16.072,18.92]
[1673467305693,155.5027,16.091,16.073,66.67]
[1673467305909,20.0,16.09,16.074,18.92]
[1673467306100,20.0,16.09,16.075,66.67]
[1673467306305,155.5027,16.091,16.076,18.92]
[1673467306516,46.6,16.097,16.077,46.66]
[1673467306721,46.6,16.099,16.08,22.01]
[1673467306936,20.0,16.098,16.081,63.65]
[1673467307160,20.0,16.096,16.082,20.96]
[1673467307373,20.0,16.096,16.083,17.96]
[1673467307581,20.0,16.096,16.084,20.96]
[1673467307819,20.0,16.096,16.085,0.96]
[1673467308046,20.0,16.096,16.086,47.59]
[1673467308223,20.0,16.098,16.087,17.96]
[1673467308971,46.6,16.097,16.065,20.0]
[1673467309181,235.1,16.097,16.07,110.0]
[1673467309394,20.0,16.096,16.07,110.0]
[1673467309590,46.61,16.095,16.072,46.67]
[1673467309799,20.0,16.094,16.073,20.0]
[1673467310021,20.0,16.094,16.074,46.67]
[1673467310335,1250.0,16.093,16.075,18.92]
[1673467310557,1250.0,16.094,16.076,46.66]
[1673467310744,20.0,16.092,16.077,0.96]
[1673467311075,32.10816711,16.097,16.077,0.96]
[1673467311076,1296.62,16.091,16.077,0.96]
[1673467311284,20.0,16.09,16.077,0.96]
[1673467311478,1250.0,16.089,16.077,0.96]
[1673467311688,1438.5,16.095,16.076,46.66]
[1673467311908,257.03,16.094,16.076,46.66]
[1673467312117,20.0,16.092,16.076,46.66]
[1673467312326,188.5,16.09,16.075,20.0]
[1673467312539,20.0,16.088,16.071,46.68]
[1673467312839,1487.05,16.087,16.072,20.0]
[1673467313170,1487.05,16.087,16.066,46.69]
[1673467313171,7.20991,16.086,16.066,46.69]
[1673467313378,48.56,16.085,16.062,46.7]
[1673467313596,1305.76991,16.085,16.062,46.7]
[1673467313813,20.0,16.084,16.061,46.71]
[1673467314006,1298.56,16.083,16.061,46.71]
[1673467314218,20.0,16.082,16.061,46.71]
[1673467314413,1296.65,16.081,16.061,46.71]
[1673467314628,1296.65,16.081,16.062,20.0]
[1673467314843,20.0,16.08,16.063,65.62]
[1673467315054,1296.65,16.079,16.063,65.62]
[1673467315368,1250.0,16.079,16.07,22.01]
[1673467315570,1250.0,16.084,16.071,65.6]
[1673467315799,20.0,16.088,16.071,65.6]
[1673467316004,1250.0,16.087,16.071,64.64]
[1673467316217,188.5,16.085,16.066,46.69]
[1673467316430,1316.64,16.084,16.065,46.69]
[1673467316746,20.0,16.083,16.061,98.82968924]
[1673467316956,1296.65,16.082,16.061,98.82968924]
[1673467317146,1296.65,16.082,16.062,52.11968924]
[1673467317360,1296.65,16.082,16.063,46.7]
[1673467317576,1296.65,16.082,16.063,82.1343545]
[1673467317577,20.0,16.081,16.063,82.1343545]
[1673467317776,7.20991,16.086,16.063,82.1343545]
[1673467317777,46.64,16.085,16.064,52.11968924]
[1673467317993,46.64,16.085,16.065,46.69]
[1673467318324,20.0,16.088,16.066,53.07968924]
[1673467318526,46.63,16.087,16.067,64.65]
[1673467318853,20.0,16.086,16.068,20.96]
[1673467319044,46.64,16.085,16.069,64.64]
[1673467319261,20.0,16.086,16.07,42.97]
[1673467319474,20.0,16.086,16.071,64.64]
[1673467319784,20.0,16.086,16.072,20.96]
[1673467320116,20.0,16.086,16.06,22.05]
[1673467320307,46.64,16.085,16.06,22.05]
[1673467320518,46.64,16.085,16.063,52.11968924]
[1673467320849,20.0,16.088,16.061,46.71]
[1673467321050,46.63,16.087,16.061,46.71]
[1673467321249,20.0,16.086,16.061,46.71]
[1673467321584,46.64,16.085,16.061,95.44968924]
[1673467321773,20.0,16.084,16.061,95.44968924]
[1673467321984,188.5,16.082,16.062,0.96]
[1673467322193,46.65,16.081,16.063,46.7]
[1673467322628,46.65,16.082,16.063,46.7]
[1673467322828,109.96,16.1,16.07,22.01]
[1673467322829,46.63,16.087,16.07,22.01]
[1673467323033,66.62,16.089,16.071,46.68]
[1673467323562,20.0,16.094,16.072,54.3543545]
[1673467323774,20.0,16.094,16.073,66.67]
[1673467323991,46.61,16.093,16.074,38.92]
[1673467324211,116.4152,16.098,16.08,22.01]
[1673467324403,116.4152,16.098,16.081,85.57]
[1673467324839,20.0,16.097,16.081,85.57]
[1673467325355,20.0,16.099,16.082,35.4343545]
[1673467325551,116.4152,16.107,16.083,85.56]
[1673467325757,66.58,16.106,16.084,20.0]
[1673467325982,66.58,16.106,16.085,85.56]
[1673467326186,66.58,16.106,16.085,169.73404374]
[1673467326398,66.58,16.106,16.086,84.17404374]
[1673467326607,20.0,16.105,16.087,65.55]
[1673467326813,46.58,16.104,16.087,149.72404374]
[1673467327029,46.56,16.112,16.09,22.01]
[1673467327238,108.4383,16.119,16.091,84.58]
[1673467327239,46.56,16.113,16.091,84.58]
[1673467327455,46.55,16.114,16.091,169.71404374]
[1673467327668,20.0,16.109,16.092,84.17404374]